bitfinex/quotes_SOLUSD_20220119
["timestamp","ask_amount","ask_price","bid_price","bid_amount"]
[1642616153080,10.92262542,137.75,137.66,45.147]
[1642616154084,44.60765392,137.74,137.66,45.147]
[1642616154682,55.50225392,137.74,137.66,34.0028]
[1642616154882,128.47225392,137.74,137.66,34.0028]
[1642616155285,55.50225392,137.74,137.66,34.0028]
[1642616155686,55.50225392,137.74,137.66,10.51]
[1642616155884,63.45725392,137.74,137.66,10.51]
[1642616156084,63.45725392,137.74,137.64,23.1106]
[1642616156284,63.45725392,137.74,137.62,10.51]
[1642616156886,67.54936541,137.74,137.62,10.51]
[1642616157486,10.9005,137.7,137.62,10.51]
[1642616157889,39.43216956,137.69,137.62,10.51]
[1642616159487,10.9004,137.67,137.62,10.51]
[1642616160292,10.9004,137.67,137.58,24.4532]
[1642616160494,44.60765392,137.66,137.57,34.7956]
[1642616160693,10.9028,137.64,137.57,34.7956]
[1642616160894,37.67970691,137.63,137.57,34.7956]
[1642616161895,10.9028,137.64,137.58,0.25]
[1642616162093,10.9011,137.66,137.58,0.25]
[1642616162292,10.9011,137.66,137.57,45.6967]
[1642616162700,10.9011,137.66,137.57,34.7956]
[1642616162893,35.35475552,137.65,137.57,34.7956]
[1642616163125,10.903,137.63,137.57,34.7956]
[1642616164194,37.63700436,137.62,137.57,34.7956]
[1642616164495,48.54100436,137.62,137.57,10.51]
[1642616165098,48.54100436,137.62,137.58,0.25]
[1642616166098,48.54100436,137.62,137.53,2.906]
[1642616166299,72.97,137.61,137.53,2.906]
[1642616166498,10.9074,137.59,137.53,2.906]
[1642616166897,83.8774,137.59,137.53,2.906]
[1642616167297,10.9074,137.59,137.53,2.906]
[1642616167701,57.31021912,137.59,137.54,35.38325112]
[1642616167899,72.97,137.65,137.54,35.38325112]
[1642616168098,10.9053,137.61,137.55,0.25]
[1642616168899,46.90555958,137.6,137.55,0.25]
[1642616170905,36.352,137.64,137.55,0.25]
[1642616171102,36.3393,137.68,137.56,10.51]
[1642616171403,10.7768,137.7,137.57,0.25]
[1642616171603,10.7768,137.7,137.58,10.51]
[1642616171800,10.7768,137.7,137.59,0.25]
[1642616172000,44.50956077,137.69,137.6,10.51]
[1642616172200,44.50956077,137.69,137.61,11.1479]
[1642616172399,44.50956077,137.69,137.62,48.38520888]
[1642616172601,44.50956077,137.69,137.63,10.51]
[1642616172801,44.50956077,137.69,137.63,10.76]
[1642616173301,44.00956077,137.69,137.63,10.51]
[1642616174104,44.00956077,137.69,137.64,0.25]
[1642616174903,44.00956077,137.69,137.63,10.51]
[1642616175304,44.00956077,137.69,137.64,0.25]
[1642616175704,44.00956077,137.69,137.64,10.76]
[1642616177304,10.8967,137.72,137.65,45.34877481]
[1642616177509,0.02882542,137.75,137.65,55.85877481]
[1642616177704,0.02882542,137.75,137.66,0.25]
[1642616178506,0.02882542,137.75,137.66,46.7112]
[1642616179510,10.92252542,137.75,137.66,57.6049]
[1642616182713,10.92252542,137.75,137.66,46.4612]
[1642616183014,10.92252542,137.75,137.63,13.414]
[1642616183217,18.98852542,137.75,137.64,0.25]
[1642616183812,2.04769828,137.74,137.64,0.25]
[1642616184012,10.8973,137.71,137.64,0.25]
[1642616184215,39.65085557,137.7,137.64,0.25]
[1642616184413,2.04769828,137.74,137.64,0.25]
[1642616184613,2.0765237,137.75,137.65,10.51]
[1642616184814,2.0765237,137.75,137.66,0.25]
[1642616185013,0.02882542,137.75,137.65,10.51]
[1642616185213,10.8958,137.73,137.65,10.51]
[1642616185416,35.87772835,137.71,137.65,10.51]
[1642616185816,108.84772835,137.71,137.65,10.51]
[1642616186114,35.87772835,137.71,137.65,10.51]
[1642616186317,46.77502835,137.71,137.66,42.8457166]
[1642616186922,35.87772835,137.71,137.66,42.8457166]
[1642616190822,35.87772835,137.71,137.63,34.7375]
[1642616191023,35.87772835,137.71,137.64,0.25]
[1642616191724,35.87772835,137.71,137.64,43.23349801]
[1642616192522,35.87772835,137.71,137.64,54.12919801]
[1642616192921,46.77472835,137.71,137.64,0.25]
[1642616193556,46.77472835,137.71,137.6,2.904]
[1642616193755,63.43072835,137.71,137.57,13.414]
[1642616193954,72.97,137.7,137.59,47.9630944]
[1642616194155,10.902,137.67,137.58,24.4051]
[1642616194358,10.902,137.67,137.56,36.03713781]
[1642616194359,16.829,137.67,137.55,4.87283781]
[1642616194555,16.829,137.67,137.55,1.96683781]
[1642616194556,12.33712602,137.66,137.55,1.96683781]
[1642616195155,43.53879324,137.65,137.56,41.3753357]
[1642616195357,10.9057,137.63,137.56,41.3753357]
[1642616195556,40.00103024,137.62,137.56,41.3753357]
[1642616195755,40.00103024,137.62,137.54,13.416]
[1642616196055,40.00103024,137.62,137.54,10.51]
[1642616196258,40.00103024,137.62,137.55,0.25]
[1642616196455,36.3496,137.65,137.54,10.51]
[1642616196655,24.90549828,137.68,137.54,10.51]
[1642616196860,22.8578,137.68,137.55,24.3272]
[1642616197059,22.8578,137.68,137.55,35.2301]
[1642616197458,43.30219363,137.67,137.56,35.99501229]
[1642616197859,43.30219363,137.67,137.57,0.25]
[1642616198057,43.30219363,137.67,137.57,24.7996]
[1642616198461,47.37600877,137.64,137.57,24.7996]
[1642616198860,47.37600877,137.64,137.57,24.5496]
[1642616200165,47.37600877,137.64,137.58,0.25]
[1642616200364,47.12600877,137.64,137.58,0.25]
[1642616200965,47.12600877,137.64,137.57,24.5496]
[1642616201168,47.12600877,137.64,137.54,10.51]
[1642616201364,53.26100877,137.64,137.53,1.96683781]
[1642616201566,72.97,137.63,137.54,0.25]
[1642616201765,10.9066,137.61,137.54,0.25]
[1642616202167,40.70363431,137.6,137.54,0.25]
[1642616203570,10.9064,137.59,137.54,0.25]
[1642616204167,10.9064,137.59,137.53,0.25]
[1642616206070,83.8764,137.59,137.53,0.25]
[1642616207272,10.9064,137.59,137.53,0.25]
[1642616207470,10.9064,137.59,137.53,38.02615595]
[1642616208870,10.9053,137.61,137.53,38.02615595]
[1642616209272,72.97,137.64,137.53,38.02615595]
[1642616209471,72.97,137.64,137.54,22.7968]
[1642616209875,35.5240668,137.63,137.55,0.25]
[1642616210474,46.4277668,137.63,137.55,0.25]
[1642616214682,119.3977668,137.63,137.55,0.25]
[1642616215079,46.4277668,137.63,137.55,0.25]
[1642616215281,46.4277668,137.63,137.54,22.7968]
[1642616215282,72.97,137.62,137.54,22.7968]
[1642616215578,83.876,137.6,137.54,22.7968]
[1642616215778,40.68205615,137.59,137.54,22.7968]
[1642616216178,40.68205615,137.59,137.52,10.51]
[1642616216881,40.68205615,137.59,137.52,54.71160806]
[1642616217279,40.68205615,137.59,137.52,10.51]
[1642616217481,51.58865615,137.59,137.52,10.51]
[1642616217880,51.58865615,137.59,137.51,46.9198]
[1642616218280,51.58865615,137.59,137.48,12.47683781]
[1642616218479,51.58865615,137.59,137.51,0.25]
[1642616219079,51.58865615,137.59,137.48,37.40613781]
[1642616219707,72.97,137.58,137.48,37.40613781]
[1642616219908,10.9091,137.56,137.48,37.40613781]
[1642616220211,42.85776733,137.55,137.48,37.40613781]
[1642616220707,42.85776733,137.55,137.49,0.25]
[1642616221407,42.85776733,137.55,137.48,37.40613781]
[1642616221408,53.76716733,137.55,137.48,37.40613781]
[1642616221807,126.73716733,137.55,137.48,35.4393]
[1642616222010,126.73716733,137.55,137.48,10.51]
[1642616222210,131.97416733,137.55,137.47,1.96683781]
[1642616222609,131.97416733,137.55,137.46,1.96683781]
[1642616222812,131.97416733,137.55,137.45,2.21683781]
[1642616223010,131.97416733,137.55,137.45,0.25]
[1642616223209,126.73716733,137.55,137.45,0.25]
[1642616223614,126.73716733,137.55,137.45,2.21683781]
[1642616224012,126.73716733,137.55,137.45,26.60543781]
[1642616224212,53.76716733,137.55,137.46,1.96683781]
[1642616224414,42.85776733,137.55,137.47,41.13056515]
[1642616224622,83.8782,137.57,137.48,1.96683781]
[1642616224814,10.9082,137.57,137.48,26.38053781]
[1642616225418,10.9082,137.57,137.48,37.28873781]
[1642616225616,45.92498442,137.56,137.48,37.28873781]
[1642616226216,10.9082,137.57,137.48,37.28873781]
[1642616226418,10.9082,137.57,137.48,40.19673781]
[1642616226716,10.9068,137.59,137.48,40.19673781]
[1642616226916,10.9068,137.59,137.48,50.70673781]
[1642616227117,10.9068,137.59,137.5,10.9062]
[1642616227416,10.9068,137.59,137.51,0.25]
[1642616228121,10.9068,137.59,137.5,48.61249464]
[1642616228317,10.9068,137.59,137.5,38.10249464]
[1642616228918,72.97,137.58,137.5,38.10249464]
[1642616229124,46.71221375,137.6,137.5,38.10249464]
[1642616229319,61.33989828,137.64,137.51,0.25]
[1642616229518,59.2922,137.64,137.51,34.5309]
[1642616229918,72.97,137.63,137.51,34.5309]
[1642616230523,59.74745125,137.62,137.53,45.38300949]
[1642616231022,59.74745125,137.62,137.51,23.7709]
[1642616231223,61.57457727,137.62,137.49,12.47683781]
[1642616231424,72.97,137.61,137.48,1.96683781]
[1642616231625,72.97,137.57,137.48,1.96683781]
[1642616232026,34.69677223,137.56,137.49,44.0152416]
[1642616232827,34.69677223,137.56,137.5,0.25]
[1642616233029,107.66677223,137.56,137.49,44.0152416]
[1642616233428,10.9101,137.55,137.5,0.25]
[1642616234628,10.9085,137.57,137.5,0.25]
[1642616234827,24.98809828,137.64,137.51,10.51]
[1642616235028,69.78580953,137.63,137.52,49.28542689]
[1642616235227,72.97,137.62,137.52,49.53542689]
[1642616235426,72.97,137.62,137.52,49.28542689]
[1642616235630,72.97,137.62,137.53,0.25]
[1642616235830,69.78580953,137.63,137.53,0.25]
[1642616236029,46.55480953,137.63,137.53,10.76]
[1642616236227,2.04769828,137.67,137.54,2.907]
[1642616236427,2.04769828,137.67,137.55,23.7898]
[1642616236627,12.55769828,137.68,137.55,24.0398]
[1642616236828,10.9022,137.65,137.55,34.9425]
[1642616237227,37.53916829,137.64,137.56,39.75246294]
[1642616237628,37.53916829,137.64,137.57,0.25]
[1642616238430,48.44226829,137.64,137.57,0.25]
[1642616240029,121.41226829,137.64,137.57,0.25]
[1642616240432,48.44226829,137.64,137.57,0.25]
[1642616243334,121.41226829,137.64,137.57,0.25]
[1642616245035,121.41226829,137.64,137.55,23.7898]
[1642616245236,123.23939431,137.64,137.55,23.7898]
[1642616246234,123.23939431,137.64,137.55,63.82540565]
[1642616246634,123.23939431,137.64,137.54,22.6613]
[1642616247436,50.26939431,137.64,137.54,22.6613]
[1642616247636,48.44226829,137.64,137.55,43.63612733]
[1642616248134,48.44226829,137.64,137.55,67.96722733]
[1642616248335,37.53916829,137.64,137.55,67.96722733]
[1642616249134,83.8712,137.66,137.55,67.96722733]
[1642616249347,83.8712,137.66,137.57,10.9013]
[1642616249735,83.8712,137.66,137.58,0.25]
[1642616250137,37.0421301,137.65,137.58,48.4473567]
[1642616250338,47.9439301,137.65,137.58,48.4473567]
[1642616251144,120.9139301,137.65,137.58,48.4473567]
[1642616252143,10.9018,137.65,137.58,48.4473567]
[1642616252341,10.9003,137.67,137.58,48.4473567]
[1642616252542,10.9003,137.67,137.59,34.1195]
[1642616252744,10.9003,137.67,137.6,0.25]
[1642616253170,47.78530115,137.67,137.59,34.1195]
[1642616253571,47.78530115,137.67,137.6,0.25]
[1642616254874,120.75530115,137.67,137.6,0.25]
[1642616255875,120.75530115,137.67,137.56,2.906]
[1642616256075,122.58242717,137.67,137.55,36.8932]
[1642616256278,122.58242717,137.67,137.56,0.25]
[1642616256677,133.09242717,137.67,137.55,23.4772]
[1642616256875,149.44446203,137.67,137.53,1.96683781]
[1642616257077,10.9075,137.62,137.52,36.14871714]
[1642616257276,72.97,137.6,137.52,36.14871714]
[1642616257477,72.97,137.6,137.5,1.96683781]
[1642616257678,74.79712602,137.6,137.49,69.62933781]
[1642616258277,74.79712602,137.6,137.5,0.25]
[1642616258477,10.9079,137.58,137.5,47.79364415]
[1642616258677,41.41707744,137.57,137.5,47.79364415]
[1642616258880,41.41707744,137.57,137.49,69.62933781]
[1642616259278,41.41707744,137.57,137.49,58.72213781]
[1642616259479,41.41707744,137.57,137.48,1.96683781]
[1642616259679,43.24420346,137.57,137.47,4.87383781]
[1642616259878,54.15210346,137.57,137.47,4.87383781]
[1642616260080,54.15210346,137.57,137.47,2.907]
[1642616261080,54.15210346,137.57,137.46,36.60339644]
[1642616261880,72.97,137.56,137.46,36.60339644]
[1642616262081,52.32497744,137.57,137.46,36.60339644]
[1642616262082,10.9104,137.54,137.46,36.60339644]
[1642616262281,53.03314604,137.54,137.47,0.25]
[1642616263081,126.00314604,137.54,137.46,36.35339644]
[1642616263286,126.00314604,137.54,137.45,4.87483781]
[1642616263589,126.00314604,137.54,137.45,2.908]
[1642616264182,135.17027206,137.54,137.43,2.908]
[1642616264418,145.68027206,137.54,137.42,1.96683781]
[1642616264588,145.68027206,137.54,137.41,1.96683781]
[1642616264881,145.68027206,137.54,137.4,69.93659765]
[1642616265083,145.68027206,137.54,137.4,67.96975984]
[1642616265482,145.68027206,137.54,137.41,0.25]
[1642616265781,138.34027206,137.54,137.41,3.158]
[1642616265984,138.34027206,137.54,137.42,22.5972]
[1642616266183,138.34027206,137.54,137.43,44.80005489]
[1642616266682,0.25,137.53,137.43,44.80005489]
[1642616266882,0.25,137.53,137.43,44.55005489]
[1642616266883,10.9146,137.5,137.43,44.55005489]
[1642616267082,46.2522111,137.5,137.43,44.55005489]
[1642616267284,119.2222111,137.5,137.43,44.55005489]
[1642616268187,119.2222111,137.5,137.44,0.25]
[1642616268991,83.8846,137.5,137.44,0.25]
[1642616269588,83.8846,137.5,137.43,44.55005489]
[1642616269991,10.9157,137.48,137.43,44.55005489]
[1642616270191,10.9157,137.48,137.44,0.25]
[1642616273202,10.914,137.5,137.44,0.25]
[1642616274502,10.9124,137.52,137.44,0.25]
[1642616275499,52.23188201,137.52,137.44,0.25]
[1642616276502,125.20188201,137.52,137.44,0.25]
[1642616276905,125.20188201,137.52,137.43,44.55005489]
[1642616277401,10.9159,137.49,137.43,44.55005489]
[1642616277604,42.47034147,137.48,137.43,44.55005489]
[1642616278001,36.6361,137.51,137.44,0.25]
[1642616278402,36.6361,137.51,137.43,44.55005489]
[1642616279004,48.97038585,137.5,137.43,44.55005489]
[1642616279639,10.9156,137.48,137.43,44.55005489]
[1642616280743,10.9156,137.48,137.44,0.25]
[1642616281349,10.9156,137.48,137.43,44.55005489]
[1642616283743,36.3861,137.51,137.43,44.55005489]
[1642616284147,72.97,137.5,137.43,44.55005489]
[1642616285245,45.79186584,137.49,137.43,44.55005489]
[1642616285446,10.9146,137.49,137.43,44.55005489]
[1642616285848,83.8846,137.49,137.43,44.55005489]
[1642616286448,49.18343008,137.48,137.43,44.55005489]
[1642616286647,10.9159,137.47,137.43,44.55005489]
[1642616287448,83.8859,137.47,137.43,44.55005489]
[1642616288553,10.9159,137.47,137.43,44.55005489]
[1642616289151,83.8859,137.47,137.43,44.55005489]
[1642616289852,83.8859,137.47,137.41,24.62853781]
[1642616290052,83.8859,137.47,137.41,1.96683781]
[1642616290254,83.8859,137.47,137.4,1.96683781]
[1642616290451,83.8859,137.47,137.39,1.96683781]
[1642616292754,0.25,137.46,137.39,1.96683781]
[1642616292957,10.9193,137.44,137.39,1.96683781]
[1642616293155,34.6063934,137.43,137.39,1.96683781]
[1642616293355,107.5763934,137.43,137.38,1.96683781]
[1642616293755,107.5763934,137.43,137.37,1.96683781]
[1642616293956,107.5763934,137.43,137.35,4.87683781]
[1642616294358,107.5763934,137.43,137.36,48.10978313]
[1642616294656,118.4959934,137.43,137.36,48.35978313]
[1642616295663,45.5259934,137.43,137.36,48.35978313]
[1642616295860,10.9196,137.43,137.36,50.32662094]
[1642616296160,10.9196,137.43,137.36,50.07662094]
[1642616296360,10.9196,137.43,137.36,48.10978313]
[1642616296761,35.85076808,137.42,137.36,48.10978313]
[1642616296961,10.921,137.41,137.36,48.10978313]
[1642616297760,0.25,137.4,137.36,48.10978313]
[1642616298260,73.22,137.41,137.34,26.44833781]
[1642616298663,73.22,137.41,137.35,0.25]
[1642616299062,0.25,137.41,137.35,0.25]
[1642616299263,0.25,137.41,137.35,45.50725634]
[1642616299471,10.9215,137.4,137.35,45.50725634]
[1642616299665,36.403,137.44,137.35,45.50725634]
[1642616299866,46.9065,137.47,137.35,47.47409415]
[1642616300064,36.3965,137.47,137.36,25.60493781]
[1642616300265,36.3965,137.47,137.38,38.37134545]
[1642616300664,36.3965,137.47,137.39,0.25]
[1642616301464,10.9187,137.44,137.39,0.25]
[1642616302363,36.3892,137.5,137.39,0.25]
[1642616302568,10.9155,137.48,137.39,35.4818]
[1642616302764,10.9155,137.48,137.39,47.95863781]
[1642616303366,52.05980734,137.48,137.39,47.95863781]
[1642616303766,0.25,137.47,137.39,45.9918]
[1642616303966,0.25,137.47,137.39,47.95863781]
[1642616304167,11.1663,137.47,137.39,45.9918]
[1642616304368,11.1663,137.47,137.39,47.95863781]
[1642616305696,11.1663,137.47,137.39,45.9918]
[1642616305871,11.1663,137.47,137.39,47.95863781]
[1642616306772,84.1363,137.47,137.39,35.0763]
[1642616307170,84.1363,137.47,137.39,37.04313781]
[1642616307871,84.1363,137.47,137.39,35.0763]
[1642616308071,84.1363,137.47,137.39,37.04313781]
[1642616308270,11.1663,137.47,137.39,37.04313781]
[1642616309576,11.1663,137.47,137.39,47.95853781]
[1642616310575,11.1663,137.47,137.39,37.44853781]
[1642616310775,34.3838686,137.46,137.39,26.53313781]
[1642616311276,10.9163,137.47,137.39,26.53313781]
[1642616312175,58.25611999,137.47,137.39,26.53313781]
[1642616313905,131.22611999,137.47,137.39,26.53313781]
[1642616314804,131.22611999,137.47,137.39,24.5663]
[1642616315004,10.9177,137.45,137.39,24.5663]
[1642616317610,10.9177,137.45,137.39,26.53313781]
[1642616318110,36.45000349,137.44,137.39,26.53313781]
[1642616318412,47.36860349,137.44,137.39,24.5663]
[1642616319812,47.36860349,137.44,137.39,24.3163]
[1642616320012,47.36860349,137.44,137.38,40.33818326]
[1642616320213,47.36860349,137.44,137.38,1.96683781]
[1642616320814,120.33860349,137.44,137.38,1.96683781]
[1642616321814,120.33860349,137.44,137.37,71.58367239]
[1642616322213,47.36860349,137.44,137.38,0.25]
[1642616322414,47.36860349,137.44,137.38,2.21683781]
[1642616322613,47.36860349,137.44,137.38,1.96683781]
[1642616323414,0.25,137.43,137.37,71.58367239]
[1642616323618,47.36860349,137.44,137.37,71.58367239]
[1642616324213,47.36860349,137.44,137.38,1.96683781]
[1642616324915,10.9186,137.44,137.38,1.96683781]
[1642616325314,10.9171,137.46,137.39,0.25]
[1642616325714,36.3871,137.5,137.39,0.25]
[1642616326014,36.3871,137.5,137.4,41.69513819]
[1642616326217,36.3871,137.5,137.4,43.661976]
[1642616326414,10.9156,137.48,137.41,23.0577]
[1642616327016,0.25,137.47,137.41,23.0577]
[1642616328417,11.166,137.47,137.41,23.0577]
[1642616334032,11.166,137.47,137.42,0.25]
[1642616334822,11.166,137.47,137.41,25.02453781]
[1642616340327,10.916,137.47,137.41,25.02453781]
[1642616340527,12.55769828,137.51,137.42,6.25]
[1642616340528,2.04769828,137.51,137.42,6.25]
[1642616340728,2.04769828,137.53,137.43,1.96683781]
[1642616340930,2.04769828,137.54,137.44,12.47683781]
[1642616341128,2.04769828,137.55,137.45,24.9344]
[1642616341327,42.26686833,137.54,137.46,50.7097376]
[1642616341529,53.17786833,137.54,137.46,53.8017376]
[1642616343832,0.25,137.53,137.46,53.8017376]
[1642616345441,11.1618,137.53,137.46,47.8017376]
[1642616346965,84.1318,137.53,137.46,47.8017376]
[1642616347163,84.1318,137.53,137.45,24.9344]
[1642616348367,84.1318,137.53,137.42,92.55694271]
[1642616348767,84.1318,137.53,137.42,48.2135]
[1642616349572,84.1318,137.53,137.43,0.25]
[1642616350268,86.17949828,137.53,137.43,0.25]
[1642616350969,84.1318,137.53,137.43,0.25]
[1642616353269,86.17949828,137.53,137.43,0.25]
[1642616353669,84.1318,137.53,137.43,0.25]
[1642616353869,11.1618,137.53,137.43,0.25]
[1642616354069,10.9118,137.53,137.43,0.25]
[1642616354270,42.26686833,137.54,137.44,10.51]
[1642616354473,42.26686833,137.54,137.45,72.71253111]
[1642616354672,42.26686833,137.54,137.45,96.88453111]
[1642616354870,42.26686833,137.54,137.45,90.88453111]
[1642616355072,2.04769828,137.56,137.45,101.79523111]
[1642616355272,10.9099,137.56,137.45,101.79523111]
[1642616355472,10.9099,137.56,137.45,103.76206892]
[1642616355671,2.04769828,137.58,137.46,1.24937163]
[1642616355872,2.04769828,137.58,137.47,10.51]
[1642616356073,4.09211149,137.61,137.47,10.51]
[1642616356074,2.04769828,137.6,137.49,48.64674069]
[1642616356271,12.95449828,137.6,137.51,10.9061]
[1642616356471,12.95449828,137.6,137.53,42.03209576]
[1642616357274,0.25,137.59,137.53,42.03209576]
[1642616357871,10.9068,137.6,137.53,42.03209576]
[1642616358074,10.9068,137.6,137.54,0.25]
[1642616358271,129.4758783,137.61,137.54,0.25]
[1642616358472,13.15599828,137.61,137.54,6.028]
[1642616359271,11.1083,137.61,137.54,6.028]
[1642616359875,22.0137,137.61,137.54,5.778]
[1642616360073,22.0137,137.61,137.53,42.03209576]
[1642616361575,11.1563,137.6,137.53,42.03209576]
[1642616361774,11.1563,137.6,137.49,27.8793]
[1642616361976,13.20399828,137.6,137.5,10.51]
[1642616362675,39.06394568,137.59,137.5,51.12747974]
[1642616362875,10.9088,137.57,137.5,51.12747974]
[1642616363076,35.31573546,137.56,137.5,51.12747974]
[1642616363277,10.9088,137.57,137.51,0.25]
[1642616363577,10.9088,137.57,137.5,51.12747974]
[1642616363977,10.9088,137.57,137.51,0.25]
[1642616364177,10.9075,137.59,137.51,0.25]
[1642616364379,129.36409619,137.59,137.51,0.25]
[1642616364581,56.39409619,137.59,137.51,0.25]
[1642616365178,0.25,137.58,137.51,0.25]
[1642616365704,56.39409619,137.59,137.51,0.25]
[1642616365882,10.9075,137.59,137.51,0.25]
[1642616366780,57.50231103,137.59,137.51,0.25]
[1642616367485,57.50231103,137.59,137.51,11.156]
[1642616369586,57.50231103,137.59,137.51,21.666]
[1642616375626,46.59481103,137.59,137.51,21.666]
[1642616377326,130.47191103,137.59,137.51,10.51]
[1642616378228,132.51960931,137.59,137.51,10.51]
[1642616378427,132.51960931,137.59,137.5,65.25497974]
[1642616379528,59.54960931,137.59,137.5,76.16177974]
[1642616379730,57.50191103,137.59,137.51,0.25]
[1642616379933,57.50191103,137.59,137.5,65.25497974]
[1642616380231,59.54960931,137.59,137.5,65.25497974]
[1642616380629,72.97,137.58,137.5,65.25497974]
[1642616380830,11.1587,137.57,137.49,24.9723]
[1642616381231,13.20639828,137.57,137.49,24.9723]
[1642616381533,13.20639828,137.57,137.47,10.51]
[1642616381731,2.04769828,137.56,137.46,24.2071]
[1642616381932,10.913,137.53,137.46,24.2071]
[1642616382133,46.59481103,137.52,137.46,24.2071]
[1642616383534,57.50741103,137.52,137.45,46.16567233]
[1642616383735,57.50741103,137.52,137.46,0.25]
[1642616385135,130.47741103,137.52,137.46,0.25]
[1642616385539,57.50741103,137.52,137.46,0.25]
[1642616387036,57.50741103,137.52,137.45,0.25]
[1642616387335,72.97,137.51,137.45,0.25]
[1642616387738,10.9142,137.5,137.45,0.25]
[1642616387941,37.19501245,137.49,137.45,0.25]
[1642616390143,122.97,137.46,137.34,13.36654154]
[1642616390345,122.97,137.46,137.31,474.68674863]
[1642616390346,72.97,137.44,137.31,455.69437713]
[1642616390545,7.59562993,137.41,137.31,421.93054213]
[1642616390746,2.912,137.4,137.31,421.93054213]
[1642616390944,2.912,137.4,137.27,27.20190566]
[1642616391143,2.912,137.4,137.28,46.78984028]
[1642616391344,10.9214,137.4,137.29,2.912]
[1642616391981,0.25,137.39,137.29,2.912]
[1642616392178,3.162,137.39,137.28,57.29984028]
[1642616392380,10.9235,137.38,137.28,57.29984028]
[1642616392579,13.8355,137.38,137.28,57.29984028]
[1642616392878,86.8055,137.38,137.28,57.29984028]
[1642616393079,86.8055,137.38,137.28,46.78984028]
[1642616393679,86.8055,137.38,137.25,10.51]
[1642616393880,86.8055,137.38,137.26,6.0]
[1642616394481,86.8055,137.38,137.27,0.25]
[1642616394680,86.8055,137.38,137.27,36.51842974]
[1642616395084,86.8055,137.38,137.27,36.26842974]
[1642616395883,13.8355,137.38,137.28,72.97]
[1642616396082,13.8339,137.4,137.29,10.51]
[1642616396280,10.9219,137.4,137.3,49.7511153]
[1642616398182,2.912,137.41,137.31,16.51]
[1642616398389,2.912,137.44,137.31,19.422]
[1642616398582,2.911,137.45,137.32,73.22]
[1642616398786,2.911,137.47,137.33,68.0631229]
[1642616398984,2.911,137.45,137.33,54.2346229]
[1642616399184,1.82712602,137.45,137.34,0.25]
[1642616399483,13.8296,137.44,137.34,0.25]
[1642616399682,14.0796,137.44,137.34,0.25]
[1642616399882,15.90672602,137.44,137.34,0.25]
[1642616400989,14.0796,137.44,137.34,10.76]
[1642616401585,15.90672602,137.44,137.34,10.76]
[1642616402484,14.0796,137.44,137.34,10.76]
[1642616402686,15.90672602,137.44,137.34,10.76]
[1642616403288,15.90672602,137.44,137.34,0.25]
[1642616403490,26.41672602,137.44,137.34,0.25]
[1642616404288,72.97,137.43,137.34,0.25]
[1642616404489,10.9223,137.4,137.34,0.25]
[1642616404689,0.25,137.39,137.34,0.25]
[1642616405288,2.911,137.42,137.34,0.25]
[1642616405489,0.25,137.41,137.34,0.25]
[1642616406488,10.9223,137.39,137.34,0.25]
[1642616410089,10.9223,137.39,137.31,47.9904]
[1642616410291,21.4323,137.39,137.31,47.9904]
[1642616410491,2.912,137.38,137.29,2.911]
[1642616410690,10.9253,137.36,137.29,2.911]
[1642616411092,10.9253,137.36,137.3,47.57691709]
[1642616412093,0.25,137.35,137.3,47.57691709]
[1642616412991,11.1755,137.35,137.3,47.57691709]
[1642616413191,10.9255,137.35,137.3,47.57691709]
[1642616415794,10.9255,137.35,137.26,47.8987]
[1642616415997,10.927,137.33,137.24,2.912]
[1642616416195,10.927,137.33,137.25,6.0]
[1642616416796,10.927,137.33,137.26,35.6593423]
[1642616417002,2.912,137.32,137.26,35.6593423]
[1642616417199,10.93,137.31,137.26,35.6593423]
[1642616417599,10.93,137.31,137.23,23.3746]
[1642616417800,10.93,137.31,137.21,2.912]